fUST/lending_fUST_20250816
["ID","MTS","AMOUNT","RATE_DAILY","PERIOD"]
[379561034,1755333061578,-575.176976,0.00023273,7]
[379561035,1755333061588,-575.176976,0.00023273,7]
[379561036,1755333061598,-224.534692,0.00023273,7]
[379561037,1755333061607,-224.534688,0.00023273,7]
[379561038,1755333061617,-200.0,0.0002328,7]
[379561039,1755333061627,-151.0,0.00023287,7]
[379561040,1755333061638,-151.0,0.00023287,7]
[379561041,1755333061647,-208.915596,0.00023287,7]
[379561042,1755333061657,-208.915596,0.00023287,7]
[379561043,1755333061666,-151.0,0.00023287,7]
[379561044,1755333061676,-151.0,0.00023287,7]
[379561045,1755333061686,-151.0,0.00023287,7]
[379561046,1755333061696,-152.43041,0.00023287,7]
[379561047,1755333061705,-151.0,0.00023287,7]
[379561048,1755333061715,-151.0,0.00023287,7]
[379561049,1755333061724,-222.50366,0.00023287,7]
[379561050,1755333061734,-746.656327,0.00023287,7]
[379561051,1755333061745,-746.656327,0.00023287,7]
[379561052,1755333061755,-734.653186,0.00023287,7]
[379561053,1755333061764,-734.653186,0.00023287,7]
[379561054,1755333061774,-151.0,0.00023287,7]
[379561055,1755333061784,-151.0,0.00023287,7]
[379561056,1755333061934,-151.0,0.00023287,7]
[379561057,1755333061946,-151.0,0.00023287,7]
[379561058,1755333061957,-151.0,0.00023287,7]
[379561059,1755333061967,-151.0,0.00023287,7]
[379561060,1755333061977,-230.529376,0.00023287,7]
[379561061,1755333061986,-230.529376,0.00023287,7]
[379561062,1755333061997,-151.0,0.00023287,7]
[379561063,1755333062007,-715.87172,0.00023287,7]
[379561064,1755333062017,-715.87172,0.00023287,7]
[379561065,1755333062027,-151.0,0.00023287,7]
[379561066,1755333062037,-187.768862,0.00023287,7]
[379561067,1755333062048,-187.768862,0.00023287,7]
[379561068,1755333062057,-480.0,0.00023287,3]
[379561069,1755333062066,-151.0,0.00023287,7]
[379561070,1755333062075,-151.0,0.00023287,7]
[379561071,1755333062085,-466.67665325,0.00023287,3]
[379561072,1755333062094,-151.0,0.00023287,7]
[379561073,1755333062104,-151.0,0.00023287,7]
[379561074,1755333062114,-480.0,0.00023287,3]
[379561075,1755333062124,-460.0,0.00023287,3]
[379561076,1755333062137,-480.0,0.00023287,3]
[379561077,1755333062156,-246.696732,0.00023287,7]
[379561078,1755333062175,-246.696732,0.00023287,7]
[379561079,1755333062195,-460.0,0.00023287,3]
[379561080,1755333062213,-340.0,0.00023287,3]
[379561081,1755333062222,-480.0,0.00023287,3]
[379561082,1755333062231,-480.0,0.00023287,3]
[379561083,1755333062240,-480.0,0.00023287,3]
[379561084,1755333062250,-360.0,0.00023287,3]
[379561085,1755333062259,-480.0,0.00023287,3]
[379561086,1755333062269,-768.56,0.00023287,3]
[379561087,1755333062278,-480.0,0.00023287,3]
[379561088,1755333062288,-480.0,0.00023287,3]
[379561089,1755333062299,-480.0,0.00023287,3]
[379561090,1755333062309,-151.0,0.00023287,7]
[379561091,1755333062318,-480.0,0.00023287,3]
[379561092,1755333062327,-400.0,0.00023287,3]
[379561093,1755333062338,-3445.9,0.00023287,3]
[379561094,1755333062355,-603.12,0.00023287,3]
[379561095,1755333062364,-151.0,0.00023287,7]
[379561096,1755333062375,-166.091357,0.00023287,7]
[379561097,1755333062385,-166.091357,0.00023287,7]
[379561098,1755333062394,-999.82,0.00023287,3]
[379561099,1755333062404,-151.0,0.00023287,7]
[379561100,1755333062413,-557.55,0.00023287,3]
[379561101,1755333062422,-151.0,0.00023287,7]
[379561102,1755333062432,-151.701307,0.00023287,7]
[379561103,1755333062441,-151.701316,0.00023287,7]
[379561104,1755333062451,-181.393424,0.00023287,7]
[379561105,1755333062461,-181.393424,0.00023287,7]
[379561106,1755333062470,-440.0,0.00023287,3]
[379561107,1755333062480,-151.0,0.00023287,7]
[379561108,1755333062489,-575.176976,0.00023287,7]
[379561109,1755333062498,-575.176976,0.00023287,7]
[379561110,1755333062507,-219.93,0.00023287,3]
[379561111,1755333062517,-480.0,0.00023287,3]
[379561112,1755333062527,-500.0,0.00023287,8]
[379561113,1755333062536,-480.0,0.00023287,3]
[379561114,1755333062545,-480.0,0.00023287,3]
[379561115,1755333062554,-564.97,0.00023287,3]
[379561116,1755333062563,-949.14,0.00023287,3]
[379561117,1755333062573,-2259.49,0.00023287,3]
[379561118,1755333062581,-1309.75,0.00023287,3]
[379561119,1755333062591,-480.0,0.00023287,3]
[379561120,1755333062600,-480.0,0.00023287,3]
[379561121,1755333062609,-480.0,0.00023287,3]
[379561122,1755333062620,-400.0,0.00023287,3]
[379561123,1755333062629,-480.0,0.00023287,3]
[379561124,1755333062639,-480.0,0.00023287,3]
[379561125,1755333062648,-480.0,0.00023287,3]
[379561126,1755333062658,-480.0,0.00023287,3]
[379561127,1755333062667,-4698.9,0.00023287,3]
[379561128,1755333062676,-480.0,0.00023287,3]
[379561129,1755333062688,-480.0,0.00023287,3]
[379561130,1755333062697,-536.11,0.00023287,3]
[379561131,1755333062707,-480.0,0.00023287,3]
[379561132,1755333062716,-480.0,0.00023287,3]
[379561133,1755333062726,-534.64,0.00023287,3]
[379561134,1755333062735,-480.0,0.00023287,3]
[379561135,1755333062745,-480.0,0.00023287,3]
[379561136,1755333062754,-480.0,0.00023287,3]
[379561137,1755333062763,-480.0,0.00023287,3]
[379561138,1755333062772,-547.68,0.00023287,3]
[379561139,1755333062782,-480.0,0.00023287,3]
[379561140,1755333062791,-1768.76,0.00023287,3]
[379561141,1755333062801,-660.75,0.00023287,3]
[379561142,1755333062810,-870.21,0.00023287,3]
[379561143,1755333062819,-480.0,0.00023287,3]
[379561144,1755333062828,-803.71,0.00023287,3]
[379561145,1755333062837,-1927.42,0.00023287,3]
[379561146,1755333062847,-915.51,0.00023287,3]
[379561147,1755333062856,-732.05,0.00023287,3]
[379561148,1755333062865,-151.0,0.00023287,7]
[379561149,1755333062874,-629.77,0.00023287,3]
[379561150,1755333062883,-492.98,0.00023287,3]
[379561151,1755333062893,-480.0,0.00023287,3]
[379561152,1755333062901,-629.24726506,0.00023287,3]
[379561153,1755333062911,-480.0,0.00023287,3]
[379561154,1755333062920,-499.78,0.00023287,3]
[379561155,1755333062930,-480.0,0.00023287,3]
[379561156,1755333062939,-480.0,0.00023287,3]
[379561157,1755333062949,-761.72,0.00023287,3]
[379561158,1755333062958,-569.65566534,0.00023287,3]
[379561159,1755333063079,-420.0,0.00021917,3]
[379561160,1755333063089,-480.0,0.00021917,3]
[379561161,1755333063099,-480.0,0.00021917,3]
[379561162,1755333063109,-480.0,0.00021917,3]
[379561163,1755333063118,-250.0,0.00022128,2]
[379561164,1755333063129,-480.0,0.00022191,3]
[379561165,1755333063138,-480.0,0.00022191,3]
[379561166,1755333063148,-205.11433466,0.00023287,3]
[379561167,1755333063158,-718.31,0.00023287,3]
[379561168,1755333063168,-540.14,0.00023287,3]
[379561169,1755333063178,-500.0,0.00023287,8]
[379561170,1755333063187,-480.0,0.00023287,3]
[379561171,1755333063198,-354.92,0.00023287,3]
[379561172,1755333063207,-260.0,0.00023287,3]
[379561173,1755333063218,-1207.41,0.00023287,3]
[379561174,1755333063227,-480.0,0.00023287,3]
[379561175,1755333063237,-767.49,0.00023287,3]
[379561176,1755333063247,-1351.85,0.00023287,3]
[379561177,1755333063256,-801.84,0.00023287,3]
[379561178,1755333063266,-680.53,0.00023287,3]
[379561179,1755333063276,-480.0,0.00023287,3]
[379561180,1755333063286,-1010.39566634,0.00023287,3]
[379561181,1755333063453,-161.2,0.00021907,10]
[379561182,1755333063463,-175.21000001,0.00021917,3]
[379561190,1755333105751,1120.67515778,0.000222,69]
[379561202,1755333140535,2000.0,2.318e-05,2]
[379561235,1755333178986,644.19598949,0.000199,2]
[379561236,1755333179009,102.62958162,0.000199,2]
[379561249,1755333288347,215.68093138,0.00028,120]
[379561264,1755333358775,721.9313853,0.000199,2]
[379561270,1755333529280,697.86700579,0.000199,2]
[379561281,1755333601910,215.68093138,0.00028,120]
[379561285,1755333699823,674.60477237,0.000199,2]
[379561287,1755333730230,299.29303005,0.00019861,2]
[379561288,1755333732785,252.379796,0.00013699,2]
[379561294,1755333875918,152.0,0.00028767,120]
[379561295,1755333876899,652.11794646,0.000199,2]
[379561306,1755333916800,215.68093138,0.00028,120]
[379561332,1755334032088,-150.0,0.0002,2]
[379561333,1755334032113,-468.93765525,0.00020092,2]
[379561334,1755334032146,-241.58234475,0.00020092,2]
[379561335,1755334032167,-198.73153867,0.00020099,2]
[379561336,1755334032189,-252.379796,0.00020187,2]
[379561337,1755334032212,-384.34999976,0.00020408,2]
[379561345,1755334045121,-182.6308446,0.00020614,2]
[379561346,1755334045143,-150.0,0.00021,2]
[379561347,1755334045165,-32.90737237,0.00021049,2]
[379561349,1755334049082,-1388.14262763,0.00021049,2]
[379561350,1755334049102,-501.91613766,0.00021105,2]
[379561351,1755334049126,-1200.0,0.0002132,2]
[379561352,1755334049147,-300.0,0.0002132,2]
[379561353,1755334049167,-178.4435094,0.00021321,2]
[379561354,1755334049199,-37.23742198,0.00021321,2]
[379561355,1755334049220,-160.0,0.00021321,2]
[379561356,1755334049241,-462.1417622,0.00021321,2]
[379561357,1755334049262,-160.0,0.00021321,2]
[379561358,1755334049283,-45.00890296,0.00021321,2]
[379561399,1755334057878,632.15304018,0.000199,2]
[379561450,1755334228931,659.69280344,0.000199,2]
[379561454,1755334231898,215.68093138,0.00028,120]
[379561455,1755334232339,-509.68733825,0.00020106,2]
[379561530,1755334238247,-150.0,0.0002,2]
[379561531,1755334238257,-173.71266175,0.00020106,2]
[379561532,1755334238266,-659.69280335,0.00020408,2]
[379561534,1755334238276,-659.69280335,0.00020916,2]
[379561536,1755334238285,-150.0,0.00021,2]
[379561538,1755334238294,-1366.79,0.00021064,2]
[379561539,1755334238304,-659.69280335,0.00021424,2]
[379561540,1755334238313,-300.0,0.00021485,2]
[379561541,1755334238325,-160.0,0.00021486,2]
[379561542,1755334238334,-232.11368524,0.00021486,2]
[379561543,1755334238344,-843.58077381,0.00021486,2]
[379561544,1755334238354,-215.68093138,0.00021486,2]
[379561545,1755334238363,-462.1417622,0.00021486,2]
[379561546,1755334238372,-200.0,0.00021746,20]
[379561547,1755334238382,-200.0,0.00021746,20]
[379561548,1755334238391,-200.0,0.00021746,20]
[379561549,1755334238400,-200.0,0.00021746,20]
[379561551,1755334238410,-200.0,0.00021746,20]
[379561553,1755334238419,-200.0,0.00021746,20]
[379561554,1755334238428,-200.0,0.00021746,20]
[379561555,1755334238438,-200.0,0.00021746,20]
[379561556,1755334238447,-572.01702358,0.00021746,2]
[379561557,1755334238955,-396.50025274,0.00021746,2]
[379561688,1755334243247,-631.43863538,0.00020006,2]
[379561689,1755334243258,-5275.88488048,0.00021746,2]
[379561690,1755334243268,-168.0,0.00021808,2]
[379561691,1755334243279,-2265.82061275,0.00021817,2]
[379561692,1755334243288,-2183.31810187,0.00021904,2]
[379561694,1755334243297,-1020.7,0.00021907,10]
[379561696,1755334243307,-499.41257657,0.00021916,2]
[379561698,1755334243316,-497.67977069,0.00021916,2]
[379561699,1755334243326,-167.49723811,0.00021916,2]
[379561700,1755334243335,-505.99678611,0.00021917,3]
[379561701,1755334243345,-151.0,0.00021917,2]
[379561702,1755334243354,-151.0,0.00021917,2]
[379561703,1755334243363,-151.0,0.00021917,2]
[379561704,1755334243372,-158.011396,0.00021917,2]
[379561705,1755334243381,-480.0,0.00021917,3]
[379561706,1755334243390,-480.0,0.00021917,3]
[379561707,1755334243400,-480.0,0.00021917,3]
[379561709,1755334243410,-282.92837081,0.00021917,3]
[379561710,1755334243420,-224.83628529,0.00021917,3]
[379561711,1755334243429,-151.0,0.00021917,2]
[379561712,1755334243439,-151.0,0.00021917,2]
[379561713,1755334243448,-249.8090837,0.00021917,3]
[379561714,1755334243457,-612.70415,0.00021917,2]
[379561715,1755334243467,-612.70415,0.00021917,2]
[379561716,1755334243476,-480.0,0.00021917,3]
[379561717,1755334243485,-612.70415,0.00021917,2]
[379561718,1755334243495,-612.70415,0.00021917,2]
[379561719,1755334243504,-480.0,0.00021917,3]
[379561720,1755334243513,-420.0,0.00021917,3]
[379561721,1755334243524,-324.776572,0.00021917,2]
[379561722,1755334243534,-324.776572,0.00021917,2]
[379561723,1755334243543,-440.0,0.00021917,3]
[379561724,1755334243553,-324.776572,0.00021917,2]
[379561725,1755334243563,-324.776572,0.00021917,2]
[379561726,1755334243572,-480.0,0.00021917,3]
[379561727,1755334243581,-420.0,0.00021917,3]
[379561728,1755334243591,-151.0,0.00021917,2]
[379561729,1755334243602,-443.66962207,0.00021917,3]
[379561730,1755334243611,-151.0,0.00021917,2]
[379561731,1755334243620,-151.0,0.00021917,2]
[379561732,1755334243629,-151.0,0.00021917,2]
[379561733,1755334243638,-465.395721,0.00021917,3]
[379561734,1755334243648,-460.0,0.00021917,3]
[379561735,1755334243657,-420.0,0.00021917,3]
[379561736,1755334243666,-296.75920449,0.00021917,3]
[379561737,1755334243676,-480.0,0.00021917,3]
[379561738,1755334243686,-480.0,0.00021917,3]
[379561739,1755334243696,-480.0,0.00021917,3]
[379561740,1755334243705,-151.98527,0.00021917,2]
[379561741,1755334243714,-151.98527,0.00021917,2]
[379561742,1755334243724,-480.0,0.00021917,3]
[379561743,1755334243736,-480.0,0.00021917,3]
[379561744,1755334243745,-151.98527,0.00021917,2]
[379561745,1755334243755,-151.98527,0.00021917,2]
[379561746,1755334243764,-421.87823095,0.00021917,3]
[379561747,1755334243773,-480.0,0.00021917,3]
[379561748,1755334243782,-480.0,0.00021917,3]
[379561749,1755334243792,-480.0,0.00021917,3]
[379561750,1755334243802,-480.0,0.00021917,3]
[379561751,1755334243813,-440.0,0.00021917,3]
[379561752,1755334243823,-480.0,0.00021917,3]
[379561753,1755334243833,-480.0,0.00021917,3]
[379561754,1755334243842,-480.0,0.00021917,3]
[379561755,1755334243851,-440.0,0.00021917,3]
[379561756,1755334243860,-422.87267177,0.00021917,3]
[379561757,1755334243870,-480.0,0.00021917,3]
[379561758,1755334243879,-480.0,0.00021917,3]
[379561759,1755334243888,-480.0,0.00021917,3]
[379561760,1755334243898,-539.09,0.00021917,3]
[379561761,1755334243907,-531.55,0.00021917,3]
[379561762,1755334243916,-480.0,0.00021917,3]
[379561764,1755334243925,-480.0,0.00021917,3]
[379561766,1755334243934,-480.0,0.00021917,3]
[379561768,1755334243943,-480.0,0.00021917,3]
[379561770,1755334243952,-480.0,0.00021917,3]
[379561772,1755334243962,-480.0,0.00021917,3]
[379561773,1755334243971,-1000.0,0.00021917,3]
[379561775,1755334243980,-440.0,0.00021917,3]
[379561777,1755334243989,-480.0,0.00021917,3]
[379561779,1755334243999,-480.0,0.00021917,3]
[379561780,1755334244008,-480.0,0.00021917,3]
[379561781,1755334244018,-401.51357453,0.00021917,3]
[379561782,1755334244027,-480.0,0.00021917,3]
[379561783,1755334244036,-480.0,0.00021917,3]
[379561784,1755334244046,-480.0,0.00021917,3]
[379561785,1755334244055,-480.0,0.00021917,3]
[379561786,1755334244065,-480.0,0.00021917,3]
[379561787,1755334244074,-480.0,0.00021917,3]
[379561788,1755334244083,-480.0,0.00021917,3]
[379561790,1755334244093,-480.0,0.00021917,3]
[379561792,1755334244102,-485.99105317,0.00021917,3]
[379561794,1755334244112,-440.0,0.00021917,3]
[379561795,1755334244122,-480.0,0.00021917,3]
[379561796,1755334244131,-480.0,0.00021917,3]
[379561797,1755334244140,-571.12,0.00021917,3]
[379561798,1755334244150,-480.0,0.00021917,3]
[379561799,1755334244159,-442.70042111,0.00021917,3]
[379561800,1755334244169,-480.0,0.00021917,3]
[379561801,1755334244179,-480.0,0.00021917,3]
[379561802,1755334244188,-480.0,0.00021917,3]
[379561803,1755334244198,-480.0,0.00021917,3]
[379561804,1755334244207,-440.0,0.00021917,3]
[379561805,1755334244217,-480.0,0.00021917,3]
[379561806,1755334244228,-480.0,0.00021917,3]
[379561807,1755334244238,-480.0,0.00021917,3]
[379561808,1755334244248,-480.0,0.00021917,3]
[379561809,1755334244257,-480.0,0.00021917,3]
[379561810,1755334244266,-480.0,0.00021917,3]
[379561811,1755334244276,-480.0,0.00021917,3]
[379561812,1755334244285,-480.0,0.00021917,3]
[379561813,1755334244294,-480.0,0.00021917,3]
[379561814,1755334244303,-480.0,0.00021917,3]
[379561815,1755334244312,-420.0,0.00021917,3]
[379561816,1755334244321,-480.0,0.00021917,3]
[379561817,1755334244331,-480.0,0.00021917,3]
[379561818,1755334244341,-480.0,0.00021917,3]
[379561819,1755334244350,-480.0,0.00021917,3]
[379561820,1755334244359,-480.0,0.00021917,3]
[379561821,1755334244371,-480.0,0.00021917,3]
[379561822,1755334244379,-286.85574591,0.00021917,3]
[379561823,1755334244409,-193.14425409,0.00021917,3]
[379561824,1755334244420,-480.0,0.00021917,3]
[379561825,1755334244429,-608.31664871,0.00021917,3]
[379561826,1755334244439,-400.0,0.00021917,3]
[379561827,1755334244448,-480.0,0.00021917,3]
[379561828,1755334244458,-387.55826247,0.00021917,3]
[379561880,1755334399364,571.733763,0.000199,2]
[379561902,1755334546289,215.68093138,0.00028,120]
[379561905,1755334571618,552.6759709,0.000199,2]
[379561921,1755334743757,534.25343844,0.000199,2]
[379561923,1755334756326,227.141816,0.00013699,2]
[379561951,1755334922357,516.44499055,0.000199,2]
[379561977,1755335097945,512.8419145,0.000199,2]
[379561978,1755335118898,151.0,0.000199,2]
[379561981,1755335152119,-156.05689075,0.0002,2]
[379561982,1755335152145,-150.0,0.0002,2]
[379561983,1755335152171,-18.97697087,0.00020003,2]
[379561984,1755335169990,215.68093138,0.00028,120]
[379561990,1755335228082,-590.85723774,0.00019903,2]
[379561992,1755335251086,-672.02003302,0.00019903,2]
[379561993,1755335251107,-251.70148214,0.0002,2]
[379561994,1755335251127,-6.27467003,0.00020003,2]
[379561995,1755335258146,637.38650022,0.0002,2]
[379561998,1755335269810,147.61349978,0.000199,2]
[379561999,1755335269835,355.08350772,0.000199,2]
[379562002,1755335319023,-188.41253449,0.00020003,2]
[379562003,1755335319046,-657.3,0.00020103,2]
[379562004,1755335319069,-227.141816,0.00020187,2]
[379562005,1755335319092,-280.05666975,0.00020208,2]
[379562006,1755335319113,-1982.59303613,0.00020308,2]
[379562007,1755335319134,-300.0,0.00020368,2]
[379562008,1755335319156,-157.0,0.00020368,2]
[379562009,1755335319176,-1134.0,0.00020368,2]
[379562010,1755335319198,-300.0,0.00020368,2]
[379562011,1755335319219,-10182.49594363,0.00020369,2]
[379562023,1755335432366,-374.10780233,0.00019901,2]
[379562024,1755335432377,-1081.83848967,0.00019901,2]
[379562025,1755335432386,-214.61512767,0.00019954,2]
[379562026,1755335432396,-264.39208485,0.00020054,2]
[379562027,1755335432419,-384.54791515,0.00020054,2]
[379562028,1755335432428,-857.4795335,0.00020105,2]
[379562029,1755335432438,-300.0,0.00020368,2]
[379562030,1755335432447,-1073.83690574,0.00020369,2]
[379562031,1755335432458,-446.15577168,0.00020369,2]
[379562032,1755335432469,-2250.02435177,0.00020369,2]
[379562083,1755335438291,-533.92,0.00020369,2]
[379562086,1755335438302,-1785.71483985,0.00020369,2]
[379562088,1755335438314,-2146.00609951,0.00020369,2]
[379562090,1755335438326,-5308.39561084,0.00020369,2]
[379562092,1755335438338,-3926.67514238,0.00020369,2]
[379562094,1755335438347,-421.107025,0.00020578,2]
[379562096,1755335438356,-23.35383622,0.00020803,2]
[379562116,1755335438539,-389.64616378,0.00020803,2]
[379562118,1755335438550,-1297.87,0.00021009,2]
[379562120,1755335438559,-1734.76890664,0.00021048,2]
[379562122,1755335438569,-413.0,0.00021147,2]
[379562124,1755335438579,-14107.90795503,0.00021148,2]
[379562126,1755335438588,-152.11094071,0.00021148,2]
[379562128,1755335438598,-2183.31810187,0.00021148,2]
[379562130,1755335438608,-500.0,0.00021157,2]
[379562132,1755335438617,-2264.10087164,0.00021203,2]
[379562134,1755335438626,-413.0,0.0002125,2]
[379562136,1755335438635,-1371.68795848,0.00021258,2]
[379562138,1755335438645,-179.12797623,0.00021268,2]
[379562140,1755335438654,-528.23687791,0.00021268,2]
[379562142,1755335438664,-168.0,0.00021269,2]
[379562144,1755335438673,-417.15472785,0.00021321,2]
[379562146,1755335438683,-168.0,0.00021349,2]
[379562148,1755335438693,-413.0,0.00021353,2]
[379562150,1755335438702,-168.0,0.00021396,2]
[379562152,1755335438711,-462.1417622,0.00021467,2]
[379562154,1755335438721,-215.68093138,0.00021467,2]
[379562156,1755335438730,-160.0,0.00021467,2]
[379562158,1755335438740,-168.0,0.0002147,2]
[379562160,1755335438749,-168.0,0.00021598,2]
[379562162,1755335438758,-168.0,0.00021613,2]
[379562164,1755335438767,-200.0,0.00021625,20]
[379562166,1755335438777,-200.0,0.00021625,20]
[379562168,1755335438786,-200.0,0.00021625,20]
[379562170,1755335438795,-200.0,0.00021625,20]
[379562172,1755335438805,-200.0,0.00021625,20]
[379562174,1755335438814,-200.0,0.00021625,20]
[379562176,1755335438823,-200.0,0.00021625,20]
[379562178,1755335438833,-200.0,0.00021625,20]
[379562180,1755335438842,-168.0,0.00021705,2]
[379562182,1755335438852,-168.0,0.0002171,2]
[379562184,1755335438863,-213.66417538,0.00021717,2]
[379562186,1755335438871,-168.0,0.00021791,2]
[379562188,1755335438881,-1158.02,0.00021807,10]
[379562190,1755335438890,-3230.52661352,0.00021817,2]
[379562192,1755335438900,-260671.60099668,0.00021817,2]
[379562194,1755335438912,-2015.51730841,0.00021817,2]
[379562196,1755335438923,-1293.46874142,0.00021817,2]
[379562199,1755335438934,-444.99950906,0.00021817,2]
[379562201,1755335438946,-97147.67887191,0.00021817,2]
[379562203,1755335438956,-1402.84053332,0.00021817,2]
[379562205,1755335438973,-5298.5188089,0.00021817,2]
[379562208,1755335438984,-1725.3752303,0.00021817,2]
[379562210,1755335438993,-500.0,0.00021817,2]
[379562212,1755335439002,-1161.57715084,0.00021817,2]
[379562214,1755335439011,-480.0,0.00021917,3]
[379562216,1755335439020,-480.0,0.00021917,3]
[379562218,1755335439030,-480.0,0.00021917,3]
[379562220,1755335439040,-480.0,0.00021917,3]
[379562221,1755335439050,-480.0,0.00021917,3]
[379562224,1755335439063,-480.0,0.00021917,3]
[379562225,1755335439071,-480.0,0.00021917,3]
[379562228,1755335439082,-480.0,0.00021917,3]
[379562229,1755335439092,-480.0,0.00021917,3]
[379562231,1755335439101,-480.0,0.00021917,3]
[379562234,1755335439110,-500.0,0.00021917,3]
[379562235,1755335439119,-480.0,0.00021917,3]
[379562237,1755335439130,-480.0,0.00021917,3]
[379562239,1755335439140,-480.0,0.00021917,3]
[379562241,1755335439149,-480.0,0.00021917,3]
[379562243,1755335439158,-462.31561383,0.00021917,3]
[379562245,1755335439167,-480.0,0.00021917,3]
[379562247,1755335439176,-480.0,0.00021917,3]
[379562249,1755335439186,-480.0,0.00021917,3]
[379562250,1755335439195,-480.0,0.00021917,3]
[379562251,1755335439204,-480.0,0.00021917,3]
[379562252,1755335439214,-480.0,0.00021917,3]
[379562253,1755335439223,-480.0,0.00021917,3]
[379562254,1755335439233,-480.0,0.00021917,3]
[379562255,1755335439242,-480.0,0.00021917,3]
[379562256,1755335439252,-480.0,0.00021917,3]
[379562257,1755335439262,-420.0,0.00021917,3]
[379562258,1755335439271,-480.0,0.00021917,3]
[379562259,1755335439280,-480.0,0.00021917,3]
[379562260,1755335439290,-480.0,0.00021917,3]
[379562261,1755335439299,-458.02955017,0.00021917,3]
[379562262,1755335439308,-420.0,0.00021917,3]
[379562263,1755335439317,-460.0,0.00021917,3]
[379562264,1755335439327,-440.0,0.00021917,3]
[379562265,1755335439337,-480.0,0.00021917,3]
[379562266,1755335439346,-480.0,0.00021917,3]
[379562267,1755335439356,-480.0,0.00021917,3]
[379562268,1755335439365,-480.0,0.00021917,3]
[379562269,1755335439375,-480.0,0.00021917,3]
[379562270,1755335439385,-460.0,0.00021917,3]
[379562271,1755335439395,-480.0,0.00021917,3]
[379562272,1755335439404,-480.0,0.00021917,3]
[379562273,1755335439413,-151.0,0.00021917,3]
[379562274,1755335439423,-480.0,0.00021917,3]
[379562275,1755335439432,-440.68403278,0.00021917,3]
[379562276,1755335439441,-480.0,0.00021917,3]
[379562277,1755335439451,-480.0,0.00021917,3]
[379562278,1755335439460,-480.0,0.00021917,3]
[379562279,1755335439470,-480.0,0.00021917,3]
[379562280,1755335439479,-480.0,0.00021917,3]
[379562281,1755335439489,-4717.71,0.00021917,3]
[379562282,1755335439498,-480.0,0.00021917,3]
[379562283,1755335439507,-480.0,0.00021917,3]
[379562284,1755335439518,-644.07,0.00021917,3]
[379562285,1755335439527,-480.0,0.00021917,3]
[379562286,1755335439535,-480.0,0.00021917,3]
[379562287,1755335439544,-420.0,0.00021917,3]
[379562289,1755335439554,-480.0,0.00021917,3]
[379562291,1755335439563,-469.1963376,0.00021917,3]
[379562293,1755335439572,-440.0,0.00021917,3]
[379562295,1755335439581,-480.0,0.00021917,3]
[379562297,1755335439591,-460.0,0.00021917,3]
[379562299,1755335439599,-480.0,0.00021917,3]
[379562301,1755335439609,-440.0,0.00021917,3]
[379562303,1755335439618,-481.7,0.00021917,3]
[379562305,1755335439627,-480.0,0.00021917,3]
[379562307,1755335439636,-480.0,0.00021917,3]
[379562309,1755335439645,-420.0,0.00021917,3]
[379562311,1755335439655,-440.0,0.00021917,3]
[379562313,1755335439664,-480.0,0.00021917,3]
[379562315,1755335439673,-480.0,0.00021917,3]